Workbook

Sheet Sheet1
B4: Opinber gjöld lögaðila 2008 til 2012
B6: Álagningarár | C6: Álögð gjöld | O6: Breytingar | R6: Fjöldi gjaldenda | AD6: Breytingar
B7: (Í milljónum króna) | C7: 2001 | D7: 2002 | E7: 2003 | F7: 2004 | G7: 2005 | H7: 2006 | I7: 2007 | J7: 2008 | K7: 2009 | L7: 2010 | M7: 2011 | N7: 2012 | O7: 2011-2012 | R7: 2001 | S7: 2002 | T7: 2003 | U7: 2004 | V7: 2005 | W7: 2006 | X7: 2007 | Y7: 2008 | Z7: 2009 | AA7: 2010 | AB7: 2011 | AC7: 2012 | AD7: 2011-2012
B9: Tekjuskattur | C9: 9140533091 | D9: 10185700282 | E9: 13844032434 | F9: 13621920248 | G9: 23770408821 | H9: 34670758738 | I9: 42716546590 | J9: 39200873478 | K9: 35374600508 | L9: 29752410218 | M9: 36291541875 | N9: 42151138109 | O9: =+N9-M9 -> 5859596234 | P9: =+N9/M9-1 -> 0.1614590048 | R9: 7536 | S9: 7930 | T9: 10190 | U9: 11393 | V9: 13206 | W9: 14693 | X9: 15121 | Y9: 16184 | Z9: 15897 | AA9: 16995 | AB9: 15006 | AC9: 15240 | AD9: =+AC9-AB9 -> 234 | AE9: =+AC9/AB9-1 -> 0.0155937625
B10: Fjármagnstekjuskattur | C10: 98819776 | D10: 138260360 | E10: 1173018481 | F10: 1201333842 | G10: 297606854 | H10: 6235195908 | I10: 341577152 | J10: 1574108125 | K10: 1418724987 | L10: 1226239428 | M10: 1226239429 | N10: 1390447511 | O10: 164208082 | P10: =+N10/M10-1 -> 0.1339119246 | R10: 84 | S10: 88 | T10: 83 | U10: 75 | V10: 82 | W10: 89 | X10: 172 | Y10: 191 | Z10: 234 | AA10: 265 | AB10: 301 | AC10: 374 | AD10: =+AC10-AB10 -> 73 | AE10: =+AC10/AB10-1 -> 0.2425249169
B11: Eignarskattur | C11: 1985423199 | D11: 2051860454 | E11: 1246688828 | F11: 1361672475 | G11: 1532749635 | H11: 0 | I11: 0 | J11: 0 | K11: 0 | L11: 0 | M11: 0 | O11: 0 | P11: 0 | R11: 7002 | S11: 7546 | T11: 8487 | U11: 9065 | V11: 9922 | W11: 0 | X11: 0 | Y11: 0 | Z11: 0 | AA11: 0 | AB11: 0 | AC11: 0 | AD11: 0 | AE11: 0
B12: Sérstakur eignarskattur | C12: 413629929 | D12: 427471042 | E12: 0 | F12: 0 | G12: 0 | H12: 0 | I12: 0 | J12: 0 | K12: 0 | L12: 0 | M12: 0 | O12: 0 | P12: 0 | R12: 6983 | S12: 7527 | T12: 0 | U12: 0 | V12: 0 | W12: 0 | X12: 0 | Y12: 0 | Z12: 0 | AA12: 0 | AB12: 0 | AC12: 0 | AD12: 0 | AE12: 0
B13: Búnaðargjald | C13: 101640516 | D13: 96436054 | E13: 186722675 | F13: 110547643 | G13: 126944615 | H13: 170832306 | I13: 106730608 | J13: 103815841 | K13: 135837265 | L13: 161007299 | M13: 175033736 | N13: 189754109 | O13: 14720373 | P13: =+N13/M13-1 -> 0.08410020455 | R13: 215 | S13: 217 | T13: 293 | U13: 312 | V13: 320 | W13: 371 | X13: 409 | Y13: 446 | Z13: 489 | AA13: 530 | AB13: 574 | AC13: 607 | AD13: 33 | AE13: 0.0574912892
B14: Jöfnunargjald alþjónustu | C14: 0 | D14: 49912773 | E14: 28644266 | F14: 26602200 | G14: 30906483 | H14: 30791689 | I14: 24179956 | J14: 39312815 | K14: 259543168 | L14: 43943176 | M14: 39219961 | N14: 42055975 | O14: 2836014 | P14: =+N14/M14-1 -> 0.07231047476 | R14: 0 | S14: 30 | T14: 20 | U14: 19 | V14: 39 | W14: 41 | X14: 35 | Y14: 41 | Z14: 38 | AA14: 41 | AB14: 41 | AC14: 47 | AD14: 6 | AE14: 0.1463414634
B15: Iðnaðarmálagjald | C15: 216989139 | D15: 211395200 | E15: 231412729 | F15: 254613856 | G15: 276552244 | H15: 309505858 | I15: 380103013 | J15: 459027571 | K15: 479193998 | L15: 430558339 | M15: 0 | N15: 0 | O15: 0 | P15: 0 | R15: 4156 | S15: 4444 | T15: 4772 | U15: 5204 | V15: 5497 | W15: 5691 | X15: 6101 | Y15: 6315 | Z15: 6264 | AA15: 6198 | AB15: 0 | AC15: 0 | AD15: 0 | AE15: 0
B16: Útvarpsgjald | C16: 0 | D16: 0 | E16: 0 | F16: 0 | G16: 0 | H16: 0 | I16: 0 | J16: 0 | K16: 544018800 | L16: 558036800 | M16: 624531000 | N16: 601637600 | O16: -22893400 | P16: =+N16/M16-1 -> -0.03665694737 | R16: 0 | S16: 0 | T16: 0 | U16: 0 | V16: 0 | W16: 0 | X16: 0 | Y16: 0 | Z16: 31629 | AA16: 32444 | AB16: 34890 | AC16: 32002 | AD16: -2888 | AE16: -0.08277443394
B17: Sérstakur skattur á fjármálafyrirtæki | M17: 978491844 | N17: 1046089494 | O17: 67597650 | P17: =+N17/M17-1 -> 0.06908350889 | Y17: 0 | Z17: 0 | AA17: 0 | AB17: 19 | AC17: 20 | AD17: 1 | AE17: 0.05263157895
B18: Viðbót á sérstakan skatt á fjármálafyrirtæki | N18: 2232508075 | O18: =+N18-M18 -> 2232508075 | P18: 0 | Y18: 0 | Z18: 0 | AA18: 0 | AB18: 0 | AC18: 20 | AD18: 20 | AE18: 0
B19: Sérstakt gjald á lifeyrissjóði | N19: 1537737993 | O19: 1537737993 | P19: 0 | Y19: 0 | Z19: 0 | AA19: 0 | AB19: 0 | AC19: 35 | AD19: 35 | AE19: 0
B21: Tryggingagjald* | C21: 18254716288 | D21: 20383311618 | E21: 22095731382 | F21: 26318033316 | G21: 27597721685 | H21: 32486026499 | I21: 37248449734 | J21: 40079338434 | K21: 45210559987 | L21: 46244406960 | M21: 65396661002 | N21: 69290281928 | O21: =+N21-M21 -> 3893620926 | P21: =+N21/M21-1 -> 0.05953852791 | R21: 10925 | S21: 11293 | T21: 12850 | U21: 13911 | V21: 14401 | W21: 15414 | X21: 15910 | Y21: 16697 | Z21: 16860 | AA21: 16461 | AB21: 16527 | AC21: 16838 | AD21: 311 | AE21: 0.01881769226
B23: Endurgreiðsla vegna rannsóknarkostnaðar | M23: 440850486 | N23: 763549430 | O23: =+N23-M23 -> 322698944 | P23: =+N23/M23-1 -> 0.7319918073 | Y23: 0 | Z23: 0 | AA23: 0 | AB23: 50 | AC23: 70 | AD23: 20 | AE23: 0.4
B25: Samtals | C25: 3.021175194e+10 | D25: 33544730605 | E25: 38806250795 | F25: 42894723580 | G25: =SUM(G9:G21) -> 53632890337 | H25: 73903110998 | I25: 80817587053 | J25: 81456476264 | K25: 83422478713 | L25: 78416602220 | M25: 104731718847 | N25: 118481650794 | O25: =+N25-M25 -> 13749931947 | P25: =+N25/M25-1 -> 0.1312871793
B27: Fjöldi gjaldskyldra félaga | R27: 15412 | S27: 18866 | T27: 21699 | U27: 23621 | V27: 26043 | W27: 27637 | X27: 30098 | Y27: 32868 | Z27: 34195 | AA27: 35709 | AB27: 36837 | AC27: 37302 | AD27: 465 | AE27: 0.01262317778
B29: *Markaðsgjald og iðgjald slysatryggingar sjómanna eru hér talin með í tölum um tryggingagjald.

Sheet Sheet2
